fUSD/lending_fUSD_20250221
["ID","MTS","AMOUNT","RATE_DAILY","PERIOD"]
[353981055,1740172284702,-1478.11,0.00012189,2]
[353981056,1740172284711,-1687.94,0.00012189,2]
[353981057,1740172284721,-1236.11,0.00012189,2]
[353981058,1740172284731,-489.16742962,0.00012189,2]
[353981059,1740172284744,-527.93,0.00012189,2]
[353981060,1740172284754,-500.0,0.00012189,2]
[353981061,1740172284764,-836.59,0.00012189,2]
[353981062,1740172284775,-1031.57,0.00012189,2]
[353981063,1740172284785,-1035.44,0.00012189,2]
[353981064,1740172284795,-500.0,0.00012189,2]
[353981065,1740172284805,-1245.12,0.00012189,2]
[353981066,1740172284815,-1117.96,0.00012189,2]
[353981067,1740172284825,-1068.45,0.00012189,2]
[353981068,1740172284835,-1183.89,0.00012189,2]
[353981069,1740172284846,-500.0,0.00012189,2]
[353981070,1740172284856,-1056.87,0.00012189,2]
[353981071,1740172284866,-5637.87,0.00012189,2]
[353981072,1740172284877,-797.09,0.00012189,2]
[353981073,1740172284887,-559.58,0.00012189,2]
[353981074,1740172284897,-1352.53,0.00012189,2]
[353981075,1740172284908,-739.7,0.00012189,2]
[353981076,1740172284918,-500.0,0.00012189,2]
[353981077,1740172284928,-1479.65,0.00012189,2]
[353981078,1740172284938,-500.0,0.00012189,2]
[353981079,1740172284948,-896.66,0.00012189,2]
[353981080,1740172284958,-2215.1,0.00012189,2]
[353981081,1740172284969,-1219.06,0.00012189,2]
[353981082,1740172284979,-500.0,0.00012189,2]
[353981083,1740172284989,-1253.82,0.00012189,2]
[353981084,1740172284999,-1134.86,0.00012189,2]
[353981085,1740172285009,-1523.22,0.00012189,2]
[353981086,1740172285020,-1190.42,0.00012189,2]
[353981087,1740172285030,-942.8,0.00012189,2]
[353981088,1740172285040,-500.0,0.00012189,2]
[353981089,1740172285050,-500.0,0.00012189,2]
[353981090,1740172285060,-579.37,0.00012189,2]
[353981091,1740172285070,-1258.98,0.00012189,2]
[353981092,1740172285080,-1291.85,0.00012189,2]
[353981093,1740172285090,-562.25602279,0.00012189,2]
[353981094,1740172285100,-661.23,0.00012189,2]
[353981095,1740172285110,-1149.69,0.00012189,2]
[353981096,1740172285120,-2660.4,0.00012189,2]
[353981097,1740172285130,-1991.69,0.00012189,2]
[353981098,1740172285140,-614.9,0.00012189,2]
[353981099,1740172285150,-1151.83,0.00012189,2]
[353981100,1740172285159,-500.0,0.00012189,2]
[353981101,1740172285170,-811.74,0.00012189,2]
[353981102,1740172285180,-1450.82,0.00012189,2]
[353981103,1740172285189,-1170.09,0.00012189,2]
[353981104,1740172285199,-500.0,0.00012189,2]
[353981105,1740172285209,-500.0,0.00012189,2]
[353981106,1740172285219,-1737.05,0.00012189,2]
[353981107,1740172285230,-897.28,0.00012189,2]
[353981108,1740172285240,-500.0,0.00012189,2]
[353981109,1740172285250,-853.87,0.00012189,2]
[353981110,1740172285260,-638.91,0.00012189,2]
[353981111,1740172285457,-511.08,0.00012189,2]
[353981112,1740172285467,-1229.62,0.00012189,2]
[353981113,1740172285477,-580.46,0.00012189,2]
[353981114,1740172285487,-1513.79,0.00012189,2]
[353981115,1740172285497,-1136.08,0.00012189,2]
[353981116,1740172285506,-794.55,0.00012189,2]
[353981117,1740172285515,-1175.93,0.00012189,2]
[353981118,1740172285525,-500.0,0.00012189,2]
[353981119,1740172285535,-987.72,0.00012189,2]
[353981120,1740172285544,-731.97,0.00012189,2]
[353981121,1740172285554,-1199.69,0.00012189,2]
[353981122,1740172285563,-1172.47,0.00012189,2]
[353981123,1740172285573,-2284.05,0.00012189,2]
[353981124,1740172285582,-5314.28,0.00012189,2]
[353981125,1740172285592,-1158.45,0.00012189,2]
[353981126,1740172285602,-588.49,0.00012189,2]
[353981127,1740172285612,-500.0,0.00012189,2]
[353981128,1740172285622,-1637.66,0.00012189,2]
[353981129,1740172285632,-1092.4,0.00012189,2]
[353981130,1740172285641,-500.0,0.00012189,2]
[353981131,1740172285651,-1130.79,0.00012189,2]
[353981132,1740172285660,-589.95,0.00012189,2]
[353981133,1740172285670,-961.8,0.00012189,2]
[353981134,1740172285679,-500.0,0.00012189,2]
[353981135,1740172285688,-839.71,0.00012189,2]
[353981136,1740172285698,-500.0,0.00012189,2]
[353981137,1740172285707,-597.77,0.00012189,2]
[353981138,1740172285717,-863.56,0.00012189,2]
[353981139,1740172285726,-2270.11,0.00012189,2]
[353981140,1740172285735,-2553.24,0.00012189,2]
[353981141,1740172285746,-500.0,0.00012189,2]
[353981142,1740172285756,-1389.81,0.00012189,2]
[353981143,1740172285765,-519.67,0.0001219,2]
[353981144,1740172285775,-500.0,0.0001219,2]
[353981145,1740172285784,-500.0,0.0001219,2]
[353981146,1740172285793,-176.01233733,0.0001219,2]
[353981147,1740172285804,-500.0,0.0001219,2]
[353981148,1740172285814,-500.0,0.0001219,2]
[353981149,1740172285824,-500.0,0.0001219,2]
[353981150,1740172285835,-500.0,0.0001219,2]
[353981151,1740172285845,-500.0,0.0001219,2]
[353981152,1740172285855,-500.0,0.00012191,2]
[353981153,1740172285865,-902.0,0.00012192,2]
[353981154,1740172285874,-902.0,0.00012219,2]
[353981155,1740172285885,-163.30428925,0.00012219,2]
[353981156,1740172285895,-1300.0,0.00012222,2]
[353981157,1740172285905,-715.95,0.00012243,2]
[353981158,1740172285914,-902.0,0.00012246,2]
[353981159,1740172285925,-1000.0,0.00012248,2]
[353981160,1740172285935,-7930.84512847,0.00012255,2]
[353981161,1740172285944,-500.0,0.0001227,2]
[353981162,1740172285954,-649.82,0.0001227,2]
[353981163,1740172285963,-622.03,0.0001227,2]
[353981164,1740172285973,-1075.7,0.0001227,2]
[353981165,1740172285983,-855.71,0.0001227,2]
[353981166,1740172285993,-1013.9,0.0001227,2]
[353981167,1740172286003,-1231.28,0.0001227,2]
[353981168,1740172286012,-769.3,0.0001227,2]
[353981169,1740172286021,-916.53,0.0001227,2]
[353981170,1740172286030,-1480.7,0.0001227,2]
[353981171,1740172286040,-1452.9,0.0001227,2]
[353981172,1740172286049,-1092.95,0.0001227,2]
[353981173,1740172286059,-761.8,0.0001227,2]
[353981174,1740172286069,-931.16,0.0001227,2]
[353981175,1740172286078,-1001.35,0.0001227,2]
[353981176,1740172286087,-2093.79,0.0001227,2]
[353981177,1740172286096,-591.75,0.0001227,2]
[353981178,1740172286105,-757.37,0.0001227,2]
[353981179,1740172286115,-500.0,0.0001227,2]
[353981180,1740172286125,-1067.6,0.0001227,2]
[353981181,1740172286134,-1427.11,0.0001227,2]
[353981182,1740172286143,-782.56,0.0001227,2]
[353981183,1740172286153,-969.96,0.0001227,2]
[353981184,1740172286162,-842.52,0.0001227,2]
[353981185,1740172286171,-830.72,0.0001227,2]
[353981186,1740172286180,-663.66,0.0001227,2]
[353981187,1740172286190,-538.49,0.00012271,2]
[353981188,1740172286200,-691.94,0.00012271,2]
[353981189,1740172286209,-644.17,0.00012271,2]
[353981190,1740172286219,-500.0,0.00012271,2]
[353981191,1740172286229,-500.0,0.00012271,2]
[353981192,1740172286238,-667.56,0.00012271,2]
[353981193,1740172286248,-756.41,0.00012271,2]
[353981194,1740172286258,-651.32,0.00012271,2]
[353981195,1740172286268,-500.0,0.00012271,2]
[353981196,1740172286277,-500.0,0.00012271,2]
[353981197,1740172286287,-552.92,0.00012271,2]
[353981198,1740172286297,-664.1,0.00012271,2]
[353981199,1740172286306,-500.0,0.00012271,2]
[353981200,1740172286315,-500.0,0.00012271,2]
[353981201,1740172286325,-641.81,0.00012271,2]
[353981202,1740172286335,-500.0,0.00012271,2]
[353981203,1740172286344,-500.0,0.00012271,2]
[353981204,1740172286354,-529.44,0.00012271,2]
[353981205,1740172286363,-500.0,0.00012271,2]
[353981206,1740172286373,-500.0,0.00012271,2]
[353981207,1740172286382,-580.98,0.00012271,2]
[353981208,1740172286391,-500.0,0.00012271,2]
[353981209,1740172286401,-656.48,0.00012271,2]
[353981210,1740172286413,-500.0,0.00012271,2]
[353981211,1740172286424,-645.51,0.00012271,2]
[353981212,1740172286434,-388.9064552,0.00012271,2]
[353981213,1740172286443,-875.23,0.00012271,2]
[353981214,1740172286454,-819.32,0.00012271,2]
[353981215,1740172286464,-514.61,0.00012271,2]
[353981216,1740172286474,-681.73,0.00012271,2]
[353981217,1740172286484,-500.0,0.00012271,2]
[353981218,1740172286496,-773.23,0.00012271,2]
[353981219,1740172286507,-500.0,0.00012271,2]
[353981220,1740172286517,-500.0,0.00012271,2]
[353981221,1740172286527,-500.0,0.00012271,2]
[353981222,1740172286537,-193.607216,0.00012271,2]
[353981223,1740172286547,-760.5,0.00012271,2]
[353981224,1740172286556,-500.0,0.00012271,2]
[353981225,1740172286566,-565.11,0.00012271,2]
[353981226,1740172286575,-500.0,0.00012271,2]
[353981227,1740172286585,-703.17,0.00012271,2]
[353981228,1740172286594,-500.0,0.00012271,2]
[353981229,1740172286604,-709.63,0.00012271,2]
[353981230,1740172286614,-562.69,0.00012271,2]
[353981231,1740172286623,-696.24,0.00012271,2]
[353981232,1740172286633,-567.21,0.00012271,2]
[353981233,1740172286642,-500.0,0.00012271,2]
[353981234,1740172286652,-694.16,0.00012271,2]
[353981235,1740172286661,-678.43,0.00012271,2]
[353981236,1740172286670,-690.55,0.00012271,2]
[353981237,1740172286679,-500.0,0.00012271,2]
[353981238,1740172286689,-663.28,0.00012271,2]
[353981239,1740172286698,-996.53,0.00012271,2]
[353981240,1740172286707,-731.38,0.00012271,2]
[353981241,1740172286716,-643.91,0.00012271,2]
[353981242,1740172286725,-500.0,0.00012271,2]
[353981243,1740172286734,-731.06,0.00012271,2]
[353981244,1740172286743,-500.0,0.00012271,2]
[353981245,1740172286752,-500.0,0.00012271,2]
[353981246,1740172286762,-710.81,0.00012271,2]
[353981247,1740172286771,-500.6,0.00012271,2]
[353981248,1740172286780,-624.32,0.00012271,2]
[353981249,1740172286790,-349.29188689,0.00012271,2]
[353981250,1740172286799,-595.44,0.00012271,2]
[353981251,1740172286808,-751.36,0.00012271,2]
[353981252,1740172286817,-636.57,0.00012271,2]
[353981253,1740172286827,-500.0,0.00012271,2]
[353981254,1740172286836,-893.82,0.00012271,2]
[353981255,1740172286846,-500.0,0.00012271,2]
[353981256,1740172286856,-174.831552,0.00012271,2]
[353981257,1740172286866,-540.5846736,0.00012271,2]
[353981258,1740172286877,-587.07,0.00012271,2]
[353981259,1740172286887,-500.0,0.00012271,2]
[353981260,1740172286897,-1704.14,0.00012271,2]
[353981261,1740172286907,-500.0,0.00012271,2]
[353981262,1740172286917,-870.24,0.00012271,2]
[353981263,1740172286926,-523.06,0.00012271,2]
[353981264,1740172286936,-1140.49,0.00012271,2]
[353981265,1740172286945,-1885.94,0.00012271,2]
[353981266,1740172286954,-762.29,0.00012271,2]
[353981267,1740172286964,-985.36,0.00012271,2]
[353981268,1740172286973,-1329.74,0.00012271,2]
[353981269,1740172286983,-1050.0,0.00012271,2]
[353981270,1740172286994,-841.39,0.00012271,2]
[353981271,1740172287004,-1478.11,0.00012271,2]
[353981272,1740172287013,-1687.94,0.00012271,2]
[353981273,1740172287023,-1236.11,0.00012271,2]
[353981274,1740172287033,-527.93,0.00012271,2]
[353981275,1740172287043,-500.0,0.00012271,2]
[353981276,1740172287053,-836.59,0.00012271,2]
[353981277,1740172287062,-1031.57,0.00012271,2]
[353981278,1740172287072,-1035.44,0.00012271,2]
[353981279,1740172287081,-500.0,0.00012271,2]
[353981280,1740172287091,-1245.12,0.00012271,2]
[353981281,1740172287100,-1117.96,0.00012271,2]
[353981282,1740172287110,-1068.45,0.00012271,2]
[353981283,1740172287119,-1183.89,0.00012271,2]
[353981284,1740172287129,-500.0,0.00012271,2]
[353981285,1740172287139,-1056.87,0.00012271,2]
[353981286,1740172287148,-5637.87,0.00012271,2]
[353981287,1740172287158,-797.09,0.00012271,2]
[353981288,1740172287167,-559.58,0.00012271,2]
[353981289,1740172287176,-1352.53,0.00012271,2]
[353981290,1740172287186,-739.7,0.00012271,2]
[353981291,1740172287196,-500.0,0.00012271,2]
[353981292,1740172287206,-1479.65,0.00012271,2]
[353981293,1740172287216,-500.0,0.00012271,2]
[353981294,1740172287225,-896.66,0.00012271,2]
[353981295,1740172287235,-2215.1,0.00012271,2]
[353981296,1740172287246,-1219.06,0.00012271,2]
[353981297,1740172287255,-500.0,0.00012271,2]
[353981298,1740172287265,-1253.82,0.00012271,2]
[353981299,1740172287274,-1134.86,0.00012271,2]
[353981300,1740172287283,-1523.22,0.00012271,2]
[353981301,1740172287295,-1190.42,0.00012271,2]
[353981302,1740172287305,-942.8,0.00012271,2]
[353981303,1740172287314,-500.0,0.00012271,2]
[353981304,1740172287324,-500.0,0.00012271,2]
[353981305,1740172287334,-579.37,0.00012271,2]
[353981306,1740172287343,-1258.98,0.00012271,2]
[353981307,1740172287353,-1291.85,0.00012271,2]
[353981308,1740172287362,-661.23,0.00012271,2]
[353981309,1740172287371,-1149.69,0.00012271,2]
[353981310,1740172287381,-2660.4,0.00012271,2]
[353981311,1740172287390,-1991.69,0.00012271,2]
[353981312,1740172287400,-614.9,0.00012271,2]
[353981313,1740172287411,-1151.83,0.00012271,2]
[353981314,1740172287422,-500.0,0.00012271,2]
[353981315,1740172287432,-811.74,0.00012271,2]
[353981316,1740172287442,-1450.82,0.00012271,2]
[353981317,1740172287451,-1170.09,0.00012271,2]
[353981318,1740172287462,-500.0,0.00012271,2]
[353981319,1740172287473,-500.0,0.00012271,2]
[353981320,1740172287483,-1737.05,0.00012271,2]
[353981321,1740172287496,-897.28,0.00012271,2]
[353981322,1740172287506,-500.0,0.00012271,2]
[353981323,1740172287516,-853.87,0.00012271,2]
[353981324,1740172287525,-638.91,0.00012271,2]
[353981325,1740172287535,-511.08,0.00012271,2]
[353981326,1740172287545,-1229.62,0.00012271,2]
[353981327,1740172287555,-580.46,0.00012271,2]
[353981328,1740172287564,-1513.79,0.00012271,2]
[353981329,1740172287574,-1136.08,0.00012271,2]
[353981330,1740172287583,-794.55,0.00012271,2]
[353981331,1740172287593,-1175.93,0.00012271,2]
[353981332,1740172287602,-500.0,0.00012271,2]
[353981333,1740172287612,-987.72,0.00012271,2]
[353981334,1740172287622,-731.97,0.00012271,2]
[353981335,1740172287631,-1199.69,0.00012271,2]
[353981336,1740172287640,-1172.47,0.00012271,2]
[353981337,1740172287649,-2284.05,0.00012271,2]
[353981338,1740172287658,-5314.28,0.00012271,2]
[353981339,1740172287668,-1158.45,0.00012271,2]
[353981340,1740172287677,-588.49,0.00012271,2]
[353981341,1740172287686,-500.0,0.00012271,2]
[353981342,1740172287695,-1637.66,0.00012271,2]
[353981343,1740172287705,-1092.4,0.00012271,2]
[353981344,1740172287715,-630.76059882,0.00012271,2]
[353981345,1740172287725,-1130.79,0.00012271,2]
[353981346,1740172287734,-589.95,0.00012271,2]
[353981347,1740172287744,-961.8,0.00012271,2]
[353981348,1740172287812,-500.0,0.00012271,2]
[353981349,1740172287822,-839.71,0.00012271,2]
[353981350,1740172287832,-500.0,0.00012271,2]
[353981351,1740172287841,-597.77,0.00012271,2]
[353981352,1740172287851,-863.56,0.00012271,2]
[353981353,1740172287860,-2270.11,0.00012271,2]
[353981354,1740172287869,-2553.24,0.00012271,2]
[353981355,1740172287880,-500.0,0.00012271,2]
[353981356,1740172287889,-1389.81,0.00012271,2]
[353981357,1740172287899,-519.67,0.00012272,2]
[353981358,1740172287909,-500.0,0.00012272,2]
[353981359,1740172287918,-500.0,0.00012272,2]
[353981360,1740172287927,-536.76637611,0.00012272,2]
[353981361,1740172287936,-500.0,0.00012272,2]
[353981362,1740172287945,-194.14672629,0.00012272,2]
[353981363,1740172287955,-500.0,0.00012272,2]
[353981364,1740172287964,-500.0,0.00012272,2]
[353981365,1740172287974,-500.0,0.00012273,2]
[353981366,1740172287983,-902.0,0.00012274,2]
[353981367,1740172287994,-1860.78,0.00012284,2]
[353981368,1740172288004,-907.0,0.00012284,2]
[353981369,1740172288014,-784.0,0.00012284,2]
[353981370,1740172288023,-1424.0,0.00012284,2]
[353981371,1740172288032,-902.0,0.00012301,2]
[353981372,1740172288041,-4217.13181045,0.00012326,2]
[353981373,1740172288050,-5132.45198607,0.00012328,2]
[353981374,1740172288059,-902.0,0.00012329,2]
[353981375,1740172288069,-151.0,0.00012329,2]
[353981376,1740172288078,-151.0,0.00012329,2]
[353981377,1740172288087,-151.0,0.00012329,2]
[353981378,1740172288096,-151.0,0.00012329,2]
[353981379,1740172288105,-151.0,0.00012329,2]
[353981380,1740172288114,-151.0,0.00012329,2]
[353981381,1740172288122,-151.0,0.00012329,2]
[353981382,1740172288131,-151.0,0.00012329,2]
[353981383,1740172288141,-151.0,0.00012329,2]
[353981384,1740172288150,-151.0,0.00012329,2]
[353981385,1740172288159,-151.0,0.00012329,2]
[353981386,1740172288168,-227.889205,0.00012329,2]
[353981387,1740172288178,-151.0,0.00012329,2]
[353981388,1740172288187,-151.0,0.00012329,2]
[353981389,1740172288196,-151.0,0.00012329,2]
[353981390,1740172288205,-151.0,0.00012329,2]
[353981391,1740172288214,-244.460273,0.00012329,2]
[353981392,1740172288224,-151.0,0.00012329,2]
[353981393,1740172288233,-151.0,0.00012329,2]
[353981394,1740172288244,-151.0,0.00012329,2]
[353981395,1740172288253,-151.0,0.00012329,2]
[353981396,1740172288262,-151.0,0.00012329,2]
[353981397,1740172288272,-151.0,0.00012329,2]
[353981398,1740172288281,-151.0,0.00012329,2]
[353981399,1740172288290,-151.0,0.00012329,2]
[353981400,1740172288299,-151.0,0.00012329,2]
[353981401,1740172288309,-151.0,0.00012329,2]
[353981402,1740172288317,-276.55861,0.00012329,2]
[353981403,1740172288326,-151.0,0.00012329,2]
[353981404,1740172288336,-151.0,0.00012329,2]
[353981405,1740172288346,-151.0,0.00012329,2]
[353981406,1740172288355,-151.0,0.00012329,2]
[353981407,1740172288364,-151.0,0.00012329,2]
[353981408,1740172288374,-151.0,0.00012329,2]
[353981409,1740172288383,-151.0,0.00012329,2]
[353981410,1740172288392,-151.0,0.00012329,2]
[353981411,1740172288401,-151.0,0.00012329,2]
[353981412,1740172288411,-153.091569,0.00012329,2]
[353981413,1740172288423,-151.0,0.00012329,2]
[353981414,1740172288433,-151.0,0.00012329,2]
[353981415,1740172288442,-744.518321,0.00012329,2]
[353981416,1740172288451,-744.518321,0.00012329,2]
[353981417,1740172288462,-744.518321,0.00012329,2]
[353981418,1740172288470,-744.518321,0.00012329,2]
[353981419,1740172288480,-744.518321,0.00012329,2]
[353981420,1740172288489,-744.518321,0.00012329,2]
[353981421,1740172288500,-744.518321,0.00012329,2]
[353981422,1740172288509,-744.518321,0.00012329,2]
[353981423,1740172288518,-744.518321,0.00012329,2]
[353981424,1740172288527,-744.518321,0.00012329,2]
[353981425,1740172288536,-744.518321,0.00012329,2]
[353981426,1740172288545,-744.518321,0.00012329,2]
[353981427,1740172288553,-151.0,0.00012329,2]
[353981428,1740172288562,-151.0,0.00012329,2]
[353981429,1740172288570,-151.0,0.00012329,2]
[353981430,1740172288580,-151.0,0.00012329,2]
[353981431,1740172288589,-151.0,0.00012329,2]
[353981432,1740172288598,-151.0,0.00012329,2]
[353981433,1740172288608,-151.0,0.00012329,2]
[353981434,1740172288617,-151.0,0.00012329,2]
[353981435,1740172288626,-151.0,0.00012329,2]
[353981436,1740172288634,-163.772472,0.00012329,2]
[353981437,1740172288642,-277.011466,0.00012329,2]
[353981438,1740172288651,-151.0,0.00012329,2]
[353981439,1740172288660,-151.0,0.00012329,2]
[353981440,1740172288669,-151.0,0.00012329,2]
[353981441,1740172288679,-151.0,0.00012329,2]
[353981442,1740172288688,-151.0,0.00012329,2]
[353981443,1740172288698,-151.0,0.00012329,2]
[353981444,1740172288707,-151.0,0.00012329,2]
[353981445,1740172288717,-151.0,0.00012329,2]
[353981446,1740172288726,-151.0,0.00012329,2]
[353981447,1740172288734,-260.421615,0.00012329,2]
[353981448,1740172288745,-151.0,0.00012329,2]
[353981449,1740172288754,-151.0,0.00012329,2]
[353981450,1740172288763,-151.0,0.00012329,2]
[353981451,1740172288773,-264.776811,0.00012329,2]
[353981452,1740172288783,-151.0,0.00012329,2]
[353981453,1740172288792,-151.0,0.00012329,2]
[353981454,1740172288801,-151.0,0.00012329,2]
[353981455,1740172288810,-151.0,0.00012329,2]
[353981456,1740172288820,-151.0,0.00012329,2]
[353981457,1740172288829,-151.0,0.00012329,2]
[353981458,1740172288839,-151.0,0.00012329,2]
[353981459,1740172288849,-151.0,0.00012329,2]
[353981460,1740172288858,-151.0,0.00012329,2]
[353981461,1740172288868,-151.0,0.00012329,2]
[353981462,1740172288879,-151.0,0.00012329,2]
[353981463,1740172288889,-228.258724,0.00012329,2]
[353981464,1740172288898,-151.0,0.00012329,2]
[353981465,1740172288908,-151.0,0.00012329,2]
[353981466,1740172288917,-151.0,0.00012329,2]
[353981467,1740172288926,-151.0,0.00012329,2]
[353981468,1740172288936,-151.0,0.00012329,2]
[353981469,1740172288946,-151.0,0.00012329,2]
[353981470,1740172288955,-151.306856,0.00012329,2]
[353981471,1740172288965,-151.0,0.00012329,2]
[353981472,1740172288974,-151.0,0.00012329,2]
[353981473,1740172288984,-912.606375,0.00012329,2]
[353981474,1740172288997,-151.0,0.00012329,2]
[353981475,1740172289006,-912.606375,0.00012329,2]
[353981476,1740172289016,-912.606375,0.00012329,2]
[353981477,1740172289025,-151.0,0.00012329,2]
[353981478,1740172289035,-151.0,0.00012329,2]
[353981479,1740172289044,-912.606375,0.00012329,2]
[353981480,1740172289054,-151.0,0.00012329,2]
[353981481,1740172289063,-912.606375,0.00012329,2]
[353981482,1740172289073,-151.0,0.00012329,2]
[353981483,1740172289083,-912.606375,0.00012329,2]
[353981484,1740172289096,-912.606375,0.00012329,2]
[353981485,1740172289105,-912.606375,0.00012329,2]
[353981486,1740172289114,-912.606375,0.00012329,2]
[353981487,1740172289123,-912.606375,0.00012329,2]
[353981488,1740172289132,-912.606375,0.00012329,2]
[353981489,1740172289141,-912.606375,0.00012329,2]
[353981490,1740172289150,-912.606375,0.00012329,2]
[353981491,1740172289159,-912.606375,0.00012329,2]
[353981492,1740172289168,-912.606375,0.00012329,2]
[353981493,1740172289178,-912.606375,0.00012329,2]
[353981494,1740172289187,-325.023928,0.00012329,2]
[353981495,1740172289197,-325.023928,0.00012329,2]
[353981496,1740172289206,-325.023928,0.00012329,2]
[353981497,1740172289215,-325.023928,0.00012329,2]
[353981498,1740172289225,-325.023928,0.00012329,2]
[353981499,1740172289234,-325.023928,0.00012329,2]
[353981500,1740172289248,-325.023928,0.00012329,2]
[353981501,1740172289257,-325.023928,0.00012329,2]
[353981502,1740172289266,-325.023928,0.00012329,2]
[353981503,1740172289276,-325.023928,0.00012329,2]
[353981504,1740172289286,-325.023928,0.00012329,2]
[353981505,1740172289295,-325.023928,0.00012329,2]
[353981506,1740172289305,-325.023928,0.00012329,2]
[353981507,1740172289315,-325.023928,0.00012329,2]
[353981508,1740172289324,-325.023928,0.00012329,2]
[353981509,1740172289334,-325.023928,0.00012329,2]
[353981510,1740172289344,-151.0,0.00012329,2]
[353981511,1740172289353,-151.0,0.00012329,2]
[353981512,1740172289362,-151.0,0.00012329,2]
[353981513,1740172289371,-151.0,0.00012329,2]
[353981514,1740172289380,-151.0,0.00012329,2]
[353981515,1740172289390,-151.0,0.00012329,2]
[353981516,1740172289399,-1000.0,0.00012329,2]
[353981517,1740172289409,-151.0,0.00012329,2]
[353981518,1740172289422,-151.0,0.00012329,2]
[353981519,1740172289431,-151.0,0.00012329,2]
[353981520,1740172289441,-151.0,0.00012329,2]
[353981521,1740172289451,-151.0,0.00012329,2]
[353981522,1740172289462,-1000.0,0.00012329,2]
[353981523,1740172289471,-188.351352,0.00012329,2]
[353981524,1740172289481,-1000.0,0.00012329,2]
[353981525,1740172289495,-1000.0,0.00012329,2]
[353981526,1740172289507,-1000.0,0.00012329,2]
[353981527,1740172289516,-1000.0,0.00012329,2]
[353981528,1740172289526,-1000.0,0.00012329,2]
[353981529,1740172289535,-1000.0,0.00012329,2]
[353981530,1740172289544,-1000.0,0.00012329,2]
[353981531,1740172289553,-976.0,0.00012329,2]
[353981532,1740172289563,-151.0,0.00012329,2]
[353981533,1740172289572,-151.0,0.00012329,2]
[353981534,1740172289581,-185.762104,0.00012329,2]
[353981535,1740172289590,-185.762104,0.00012329,2]
[353981536,1740172289600,-185.762104,0.00012329,2]
[353981537,1740172289609,-185.762104,0.00012329,2]
[353981538,1740172289618,-185.762104,0.00012329,2]
[353981539,1740172289627,-185.762104,0.00012329,2]
[353981540,1740172289636,-185.762104,0.00012329,2]
[353981541,1740172289646,-185.762104,0.00012329,2]
[353981542,1740172289655,-185.762104,0.00012329,2]
[353981543,1740172289665,-185.762104,0.00012329,2]
[353981544,1740172289674,-185.762104,0.00012329,2]
[353981545,1740172289684,-185.762104,0.00012329,2]
[353981546,1740172289694,-185.762104,0.00012329,2]
[353981547,1740172289703,-185.762104,0.00012329,2]
[353981548,1740172289713,-185.762104,0.00012329,2]
[353981549,1740172289722,-185.762104,0.00012329,2]
[353981550,1740172289732,-151.0,0.00012329,2]
[353981551,1740172289741,-151.0,0.00012329,2]
[353981552,1740172289754,-151.0,0.00012329,2]
[353981553,1740172289763,-226.80044,0.00012329,2]
[353981554,1740172289773,-264.105493,0.00012329,2]